Cogmind - Beta 14 @@@ ROGUE MODE // 2024.10.19 @ 20:31:15 Player: Bananaman Result: Self-destructed Performance ------------- Evolutions (2) 1000 Regions Visited (3) 600 Robots Destroyed (24) 120 Value Destroyed (621) 621 Prototype IDs (0) 0 Alien Tech Used (0) 0 Bonus (36) 36 TOTAL SCORE: 2377 Bonus ------- High Alert Combat Kills 36 Cogmind --------- Core Integrity 507/550 Matter 35/300 Energy 100/100 System Corruption 0% Temperature Danger (412) Movement Rolling (95) Ox1 Location -8/Materials Parts ------- > --- POWER (1) -------- (None) > --- PROPULSION (3) --- Aluminum Leg Wheel Wheel > --- UTILITY (4) ------ Sensor Array Signal Interpreter Improved Targeting Computer > --- WEAPON (3) ------- Particle Cannon Heavy Ion Cannon > --- INVENTORY (5) ---- Core Analyzer Improved Medium Armor Plating Heavy Ion Cannon Grenade Launcher Peak State ------------ > --- POWER ------------ Light Nuclear Core > --- PROPULSION ------- Aluminum Leg Wheel Wheel > --- UTILITY ---------- Sensor Array Signal Interpreter Improved Targeting Computer > --- WEAPON ----------- Particle Cannon Heavy Ion Cannon Assault Rifle > --- INVENTORY -------- Core Analyzer Improved Medium Armor Plating Heavy Ion Cannon Grenade Launcher [Rating: 18] Favorites ----------- Power Light Ion Engine Engine Light Ion Engine Power Core Light Nuclear Core Propulsion Aluminum Leg Leg Aluminum Leg Wheel Wheel Utility Sensor Array Device Sensor Array Storage Small Storage Unit Processor Signal Interpreter Weapon Grenade Launcher Energy Gun Medium Laser Energy Cannon Particle Cannon Ballistic Gun Assault Rifle Launcher Grenade Launcher Build | -11 -10 -9 -8 ------- Run | Yrd Mat Mat Mat Slots Evolved 4 | . . 2 2 Power . | . . . . Propulsion 1 | . . . 1 Utility 2 | . . 1 1 Weapon 1 | . . 1 . Parts Attached 22 | 7 4 6 5 Power 3 | 1 . 1 1 Engine 2 | 1 . 1 . Core 1 | . . . 1 Reactor . | . . . . Propulsion 5 | 2 . . 3 Treads . | . . . . Leg 3 | 2 . . 1 Wheel 2 | . . . 2 Hover . | . . . . Flight . | . . . . Utility 4 | 1 2 1 . Device 1 | . 1 . . Storage 1 | 1 . . . Processor 2 | . 1 1 . Hackware . | . . . . Protection . | . . . . Artifact . | . . . . Weapon 10 | 3 2 4 1 Energy Gun 2 | 2 . . . Energy Cannon 2 | . . 1 1 Ballistic Gun 2 | 1 . 1 . Ballistic Cannon . | . . . . Launcher 4 | . 2 2 . Special Weapon . | . . . . Impact Weapon . | . . . . Slashing Weapon . | . . . . Piercing Weapon . | . . . . Special Melee Weapon . | . . . . Unidentified Prototypes . | . . . . Parts Lost 9 | . . 6 3 Power 3 | . . 1 2 Propulsion 2 | . . 2 . Utility . | . . . . Weapon 4 | . . 3 1 Highest Loss Streak 6 | . . 6 2 To Critical Strikes . | . . . . Average Slot Usage (%) 85 | . 99 92 61 Engine 10 | . 14 10 6 Leg 17 | . 28 20 2 Device 11 | . 13 11 9 Storage 3 | . 11 . . Processor 14 | . 2 20 18 Energy Gun 2 | . 9 . . Energy Cannon 3 | . . . 11 Ballistic Gun 4 | . 8 . 9 Launcher 15 | . 10 28 . Peak Build Rating 18 | 6 7 10 18 Average Rating 8 | 4 6 9 10 On Entrance 5 | . 6 7 8 Naked Turns . | . . . . Heaviest Build 20 | 12 15 13 20 Greatest Support 20 | 20 20 20 20 Greatest Overweight (x) 3 | . . 3 3 Average Overweight (x) . | . . . 1 Largest Inventory Capacity 8 | 8 8 5 5 Average Capacity 5 | 6 7 5 5 Most Carried 5 | 2 5 5 5 Average Carried 3 | 1 3 4 3 Final Capacity 8 | 8 5 5 5 Final Carried 5 | 2 5 1 4 Class Distribution -------------------- 56% | Mutant 35% | Skirmisher 8% | Scavenger-Skirmisher Dominant Class ---------------- Mutant | -10/Materials Skirmisher | -9/Materials Mutant | -8/Materials Resources | -11 -10 -9 -8 ----------- Run | Yrd Mat Mat Mat Matter Collected 540 | 202 54 175 109 Remotely . | . . . . Salvage Created 473 | . 2 255 216 Parts 48 | . 2 37 9 Haulers Intercepted . | . . . . Recyclers Shooed . | . . . . Parts Field Recycled . | . . . . Retrieved Matter . | . . . . Parts Self-Destructed . | . . . . Prevented . | . . . . Kills | -11 -10 -9 -8 ------- Run | Yrd Mat Mat Mat Combat Hostiles Destroyed 16 | . . 12 4 Cannons 4 | . . . 4 AOE 12 | . . 12 . Classes Destroyed 6 | . 1 5 . Builder 2 | . . 1 1 Tunneler 2 | . . 2 . Watcher 4 | . 2 2 . Swarmer 6 | . . 6 . Grunt 6 | . . 3 3 Sentry 4 | . . 3 1 Best Kill Streak 6 | . 2 6 2 Combat Bots Only 4 | . . 4 2 Max Kills in Single Turn 3 | . 1 3 1 Gunslinging . | . . . . Exploded 3 | . . 3 . Melee . | . . . . Uniques/NPCs Destroyed . | . . . . Combat | -11 -10 -9 -8 -------- Run | Yrd Mat Mat Mat Hostile Shots Fired 96 | . . 52 44 Missed 29 | . . 16 13 Damage Taken 1130 | . 38 609 483 Core 225 | . 38 144 43 Absorbed by Shields . | . . . . Core Remaining (%) 82 | 100 84 64 . Volleys Fired 39 | . 4 16 19 Largest 3 | . 2 3 3 Hottest 153 | . 60 90 153 Shots Fired 80 | . 6 32 42 Gun 20 | . 1 . 19 Cannon 23 | . . . 23 Launcher 37 | . 5 32 . Special . | . . . . Kinetic 20 | . 1 . 19 Thermal 23 | . . . 23 Explosive 37 | . 5 32 . Electromagnetic . | . . . . Robot Hit Streak 9 | . 1 9 4 Robot Miss Streak 3 | . 1 3 3 Penetration Max . | . . . . Secondary Targets . | . . . . Shots Hit Robots 41 | . 2 17 22 Core Hits 39 | . 2 28 9 Critical Kills . | . . . . Critical Parts Destroyed . | . . . . Critical Strikes . | . . . . Melee Attacks . | . . . . Impact . | . . . . Slashing . | . . . . Piercing . | . . . . Sneak Attacks . | . . . . Combat Hostiles . | . . . . Follow-up Attacks . | . . . . Damage Inflicted 1715 | . 254 1037 424 Guns 124 | . 13 . 111 Cannons 313 | . . . 313 Explosions 1278 | . 241 1037 . Melee . | . . . . Ramming . | . . . . Kinetic 124 | . 13 . 111 Thermal 313 | . . . 313 Explosive 1278 | . 241 1037 . Electromagnetic . | . . . . Impact . | . . . . Slashing . | . . . . Piercing . | . . . . Highest Corruption . | . . . . Average Corruption . | . . . . Corruption Purged . | . . . . Corruption Blocked . | . . . . Overload Shots . | . . . . Overflow Damage 74 | . 39 31 4 Projectiles 4 | . . . 4 Explosions 70 | . 39 31 . Melee . | . . . . Knockbacks . | . . . . Impact . | . . . . Kinetic . | . . . . Secondary . | . . . . Self-Inflicted Damage 168 | . 38 130 . Shots 6 | . 1 5 . Rammed . | . . . . Targets Rammed . | . . . . Kicked . | . . . . Crushed . | . . . . Highest Temperature 500 | . . 84 500 Average Temperature 95 | . . 22 131 Received Heat Transfer 435 | . . 201 234 Effects 2 | . . . 2 Shutdowns 1 | . . . 1 Short Circuit 1 | . . . 1 Siege Activations . | . . . . Robots Corrupted . | . . . . Combat Hostiles . | . . . . Parts Fried . | . . . . Impact Corruptions . | . . . . Robots Melted . | . . . . Combat Hostiles . | . . . . Parts Melted 1 | . . . 1 Heat Transferred 518 | . . . 518 Parts Sabotaged . | . . . . Parts Stolen . | . . . . Parts Stripped . | . . . . Power Chain Reactions . | . . . . Alert | -11 -10 -9 -8 ------- Run | Yrd Mat Mat Mat Peak Influence 613 | . 77 613 407 Initial 245 | . . 32 245 Average 221 | . 22 345 277 Maximum Alert Level 2 | . . 2 2 Low Security (%) 39 | 100 100 17 . Level 1 41 | . . 37 97 Level 2 18 | . . 45 2 Level 3 . | . . . . Level 4 . | . . . . Level 5 . | . . . . High Security . | . . . . Max Security . | . . . . Squads Dispatched 3 | . 1 . 2 Investigation 1 | . . . 1 Extermination . | . . . . Reinforcement 2 | . 1 . 1 Assault . | . . . . Garrison . | . . . . Intercept . | . . . . Searches Triggered . | . . . . Construction Impeded . | . . . . Haulers Reinforced . | . . . . Active Scanning Responses . | . . . . Cargo Convoy Interrupts . | . . . . Stealth | -11 -10 -9 -8 --------- Run | Yrd Mat Mat Mat Distress Signals 3 | . . 2 1 Communications Jammed . | . . . . Distress Signals . | . . . . Times Spotted 32 | . 3 18 11 Peak Tracking Total 7 | . 2 7 7 Tactical Retreats 3 | . . 1 2 Traps | -11 -10 -9 -8 ------- Run | Yrd Mat Mat Mat Traps Triggered 1 | . . . 1 Indirectly . | . . . . Trap Hack Attempts . | . . . . Triggered . | . . . . Disarmed . | . . . . Reprogrammed . | . . . . Reused . | . . . . Traps Extracted . | . . . . Installed . | . . . . Triggered . | . . . . Machines | -11 -10 -9 -8 ---------- Run | Yrd Mat Mat Mat Machines Disabled 5 | . . 5 . Max in Single Turn 2 | . . 2 . Machines Repaired . | . . . . Machines Dismantled . | . . . . Machines Sabotaged . | . . . . Overloaded Fab Kills . | . . . . Hacking | -11 -10 -9 -8 --------- Run | Yrd Mat Mat Mat Machines Accessed 4 | . 2 2 . Terminals 3 | . 2 1 . Fabricators . | . . . . Repair Stations . | . . . . Recycling Units . | . . . . Scanalyzers 1 | . . 1 . Garrison Access . | . . . . Total Hacks 8 | . 4 4 . Successful 6 | . 3 3 . Failed 2 | . 1 1 . Catastrophic . | . . . . Database Lockouts . | . . . . Manual . | . . . . Terminals 6 | . 4 2 . Fabricators . | . . . . Repair Stations . | . . . . Recycling Units . | . . . . Scanalyzers 2 | . . 2 . Garrison Access . | . . . . Terminal Hacks 4 | . 3 1 . Record 1 | . 1 . . Branch Access Points 1 | . 1 . . Locate Traps 1 | . . 1 . Security Status 1 | . 1 . . Fabricator Hacks . | . . . . Repair Station Hacks . | . . . . Recycling Unit Hacks . | . . . . Scanalyzer 2 | . . 2 . Insert Component 1 | . . 1 . Analyze 1 | . . 1 . Garrison Access Hacks . | . . . . Unauthorized Hacks . | . . . . Terminals . | . . . . Fabricators . | . . . . Repair Stations . | . . . . Recycling Units . | . . . . Scanalyzers . | . . . . Garrison Access . | . . . . Data Cores Recovered . | . . . . Used . | . . . . Hacking Detections 1 | . . 1 . Full Trace Events . | . . . . Feedback Events . | . . . . Feedback Blocked . | . . . . Robot Schematics Acquired . | . . . . Robots Built . | . . . . Authchips . | . . . . Time . | . . . . Total Robot Build Rating . | . . . . Part Schematics Acquired 1 | . . 1 . Parts Built . | . . . . Authchips . | . . . . Time . | . . . . Total Part Build Rating . | . . . . Parts Repaired . | . . . . Time . | . . . . Parts Recycled . | . . . . Recycled Matter . | . . . . Retrieved Matter . | . . . . Retrieved Components . | . . . . Parts Scanalyzed 1 | . . 1 . Part Schematics Acquired 1 | . . 1 . Parts Damaged . | . . . . Bothacking | -11 -10 -9 -8 ------------ Run | Yrd Mat Mat Mat Used RIF Installer . | . . . . Robots Hacked . | . . . . Non-combat . | . . . . Combat . | . . . . Robot Hacks Applied . | . . . . Relay Couplers Released . | . . . . Fabnet Peak Effective % . | . . . . Robots Rewired . | . . . . Allies Hacked . | . . . . Hacks Repelled . | . . . . Allies | -11 -10 -9 -8 -------- Run | Yrd Mat Mat Mat Total Allies . | . . . . Largest Group . | . . . . Highest-Rated Group . | . . . . Highest-Rated Ally . | . . . . Total Orders . | . . . . Ally Attacks . | . . . . Total Damage . | . . . . Kills . | . . . . Allies Corrupted . | . . . . Allies Melted . | . . . . Intel | -11 -10 -9 -8 ------- Run | Yrd Mat Mat Mat Robot Analysis Total . | . . . . Derelict Logs Recovered . | . . . . Drone Launches . | . . . . Drone Recoveries . | . . . . Exploration | -11 -10 -9 -8 ------------- Run | Yrd Mat Mat Mat Turns Passed 972 | 49 267 393 263 Spaces Moved 660 | 33 205 302 120 Core 134 | 8 . 51 75 Treads . | . . . . Legs 490 | 25 205 251 9 Wheels 36 | . . . 36 Hover . | . . . . Flight . | . . . . Fastest Speed 50 | 50 120 50 80 Average Speed 121 | 103 120 108 162 Slowest Speed 200 | 120 120 200 200 Overloaded Moves . | . . . . Propulsion Burnouts . | . . . . Robots Hopped . | . . . . Cave-ins Triggered . | . . . . Exploration Rate (%) 19 | 3 29 34 12 Regions Visited 3 Branch Regions . Pre-discovered Areas . | . . . . Known Exits Taken 2 | . 1 1 . Unknown Exits Taken 1 | 1 . . . Scrap Searched . | . . . . Spaces Dug 19 | . . 19 . Terrain Destroyed 172 | . 36 133 3 Melee . | . . . . Projectile 3 | . . . 3 AOE 169 | . 36 133 . Terrain Rammed . | . . . . Walls Destroyed . | . . . . Machines Disabled . | . . . . Actions | -11 -10 -9 -8 --------- Run | Yrd Mat Mat Mat Total 754 | 45 220 341 148 Wait 20 | 4 . 16 . Move 657 | 32 204 301 120 Hop . | . . . . Pick Up 10 | 1 4 1 4 Fast Attach 15 | 7 3 1 4 Attach 7 | . 1 5 1 Detach 2 | 1 1 . . Swap . | . . . . Drop 4 | . 3 1 . Fire 39 | . 4 16 19 Melee . | . . . . Ram . | . . . . Kick . | . . . . Crush . | . . . . Escape Stasis . | . . . . Rewire . | . . . . Trap . | . . . . Miscellaneous . | . . . . Route ------- -11/Scrapyard -10/Materials (discovered 2 exits: *Mat / Min) -9/Materials -8/Materials History --------- Turn | Location | Event 6 | -11/Scrapyard | Discovered new exit (range 14) 50 | -11/Scrapyard | Entered Materials 250 | -10/Materials | Discovered new exit (range 3) 277 | -10/Materials | Identified exit to Materials 286 | -10/Materials | Identified exit to Mines 309 | -10/Materials | Build established: Mutant 317 | -10/Materials | Entered another Materials area 317 | -9/Materials | Evolved 2 slots: Utility x1, Weapon x1 631 | -9/Materials | Build established: Skirmisher 699 | -9/Materials | Discovered new exit (range 13) 707 | -9/Materials | Identified exit to Materials 710 | -9/Materials | Entered another Materials area 710 | -8/Materials | Evolved 2 slots: Propulsion x1, Utility x1 713 | -8/Materials | Lost 6 parts (1p2n3w) 973 | -8/Materials | Self-destructed Last Messages --------------- 00900_ Acquired Lgt. Nuclear Core. 00914_ U-05 Engineer destroyed. 00917_ Acquired 12 matter. 00921_ Acquired Wheel. 00929_ R-06 Scavenger collects Lgt. Ion Engine. 00937_ O-16 Technician sends out distress signal. 00937_ O-16 Technician: "IFF HANDSHAKE FAILED. SECURING TERMINAL." 00945_ O-16 Technician uses terminal to summon reinforcements. 00945_ ALERT: Hostiles spotted, dispatching reinforcements to Terminal M009. 00945_ O-16 Technician locks terminal. 00958_ Destroyed Lgt. Nuclear Core. 00962_ G-47 Trooper destroyed. 00965_ Heat Sink melted. 00965_ Y-45 Defender destroyed. 00967_ Power failure, Lgt. Nuclear Core shutdown. 00968_ Wheel broken. 00968_ Overheating: Short circuit. 00968_ Lgt. Nuclear Core destroyed. 00971_ Assault Rifle destroyed. Map ----- +----------------------------------------------------+ | ??????????????????# !! / ????????????????? | | ??????????????????# !% #?????????????????? | | ??????????????????# """ #?? ??????????????? | | ?????????????????## "R #? ?????????????? | | ?????????????????# """ ?? ?????????????? | | ??????????????????# "" ???? #?????????????? | | ??????????????????? ?????? #????????###### | | ????????????????????#+#?????? #????????# | | ??????????????####??# #?????? #????????# """ | | ???????????# ! ?# #?????? #????????# """ | | ???????????# ""?# #?????# ##???????# """ | | ???????????# """# ###### #???????# | | ???????????# ! """# X #???????#! | | ???????????# + T #???????###+## | | ???????????#! """# #?????????# #? | | ???????????# """### #?????????# #? | | ???????????# ""???# #########??????# #? | | ???????????# ???# #??????# #? | | ??????????????####????#x### ## #??????# #? | | ??????????????????????# #?# ## #??????# #? | | ??????????????????????#x#?#! !##[#??????# #? | | ??????????????????????#X#?##!!!!### #??????# #? | | ??????????????????????# #??######?# #??????# #? | | ??????????????????????# #?????????# #??????# #? | | ?????????????????????## #?????????#x#??????# ## | | ?????????????????????#@/#?????????# #??????# | | ?????????????????????# ??????# #??????# | | ?????????????????????# ??# #??????# | | ?????????????????????#%! !!]## ######## | | ?????????????????????/g%!""" !]]## | | ?????????????????????# """ !]]Y############ | | ?????????????????????# """ ##??????????## | | ?????????????????????# #????????????? | | ??????????????????????#;###??#?###????????????? | | ??????????????????????? ??????????????????????? | | | | | | | | | | | | | | | | | | | | | | | | | | | | | | | +----------------------------------------------------+ Best States ------------- Heat Dissipation 31 Energy Generation 14 Energy Capacity 160 Matter Stores 241 Matter Capacity 300 Sight Range 16 Robot Scan Range 14 Terrain Scan Density 10 Evasion (%) 55 Targeting Accuracy 6 Item Schematics ----------------- Assault Rifle | -9/Materials | Scanalyzed Robot Schematics ------------------ None Fabricated ------------ Nothing Alien Tech Used ----------------- None Achievements -------------- None Challenges ------------ None Game ------ Seed NeutronMassPit Manual? 0 Play Time 00:14:57 Cumulative 14.6 hours Start 2024.09.13 @ 16:08:12 End 2024.10.19 @ 20:31:15 Sessions 3 Manual Loads 0 Difficulty Rogue Special Mode None Game No. 19 Rogue 19 Adventurer 0 Explorer 0 Win Type - Total 0 Types 0/0/0/0/0/0/0/0/0 Lore% 11 Gallery% 22 Achievement% 23 Wizard Run 0 Options --------- Layout 0 ASCII 0 Keyboard 0 Movement Numpad Keybinds 0 Fullscreen 1 Font 18/SmallcapsGlow Map View 76x50 Zoom Use 0% Tactical HUD 1 Map Filters NONE Filters NONE Steam 1 RUN: 50f96a3a-55a4-459b-9205-ff16b9214b11